[Event "Turkish Youth Championship 2024"]
[Site "Samsun"]
[Date "2024.05.23"]
[Round "8"]
[White "Uzdemir, Ali Poyraz"]
[Black "Tirpan, Ceren"]
[Result "0-1"]
[ECO "B45"]
[WhiteElo "1898"]
[BlackElo "2004"]
[Annotator "NA RC"]
[PlyCount "78"]
[EventDate "2024.05.18"]
[EventType "swiss"]
[EventCountry "TUR"]
[SourceTitle "playchess.com"]
[Source "ChessBase"]
[SourceQuality "1"]
[TimeControl "5400+30"]

1. e4 {[%emt 0:01:00]} c5 {[%emt 0:01:00]} 2. Nf3 {[%emt 0:00:30]} Nc6 {[%emt 0:00:00]} 3. d4 {[%emt 0:00:30]} cxd4 {[%emt 0:00:00]} 4. Nxd4 {[%emt 0:00:00]} Nf6 {[%emt 0:00:00]} 5. Nc3 {[%emt 0:00:00]} e6 {[%emt 0:00:00]} 6. Ndb5 {[%emt 0:03:30]} Bc5 {[%emt 0:01:30]} 7. Nd6+ {[%emt 0:04:30]} Ke7 {[%emt 0:01:30]} 8. Bf4 {[%emt 0:01:30]} e5 {[%emt 0:00:30]} 9. Nf5+ {[%emt 0:04:30]} Kf8 {[%emt 0:00:30]} 10. Bg5 {[%emt 0:01:30]} h6 {[%emt 0:01:30]} 11. Bh4 {[%emt 0:10:30]} g5 {[%emt 0:11:30]} 12. Bg3 {[%emt 0:01:30]} d6 {[%emt 0:09:30]} 13. Ne3 {[%emt 0:14:30]} Be6 {[%emt 0:09:30]} 14. Ned5 {[%emt 0:13:30]} Nd4 {[%emt 0:13:30]} 15. Bd3 {[%emt 0:10:30]} Bxd5 {[%emt 0:12:30]} 16. Nxd5 {[%emt 0:01:30]} Nxd5 {[%emt 0:01:30]} 17. exd5 {[%emt 0:00:30]} e4 {[%emt 0:01:30]} 18. Bc4 {[%emt 0:06:30]} Qe7 {[%emt 0:03:30]} 19. c3 {[%emt 0:03:30]} Nf5 {[%emt 0:00:30]} 20. Qe2 {[%emt 0:02:55]} h5 {[%emt 0:07:30]} 21. h3 {[%emt 0:02:20]} e3 {[%emt 0:00:30]} 22. Bd3 {[%emt 0:02:23]} Re8 {[%emt 0:04:51]} 23. O-O {[%emt 0:03:19]} h4 {[%emt 0:02:49]} 24. b4 {[%emt 0:08:27]} Bb6 {[%emt 0:00:48]} 25. Bxf5 {[%emt 0:02:39]} exf2+ {[%emt 0:00:09]} 26. Rxf2 {[%emt 0:00:03]} Qxe2 {[%emt 0:00:15]} 27. Bxd6+ {[%emt 0:00:37]} Kg7 {[%emt 0:00:10]} 28. Bc5 {[%emt 0:00:00]} Qe5 {[%emt 0:00:21]} 29. Rd1 {[%emt 0:00:09]} Bxc5 {[%emt 0:00:18]} 30. bxc5 {[%emt 0:00:30]} Qxc3 {[%emt 0:00:05]} 31. Rc2 {[%emt 0:00:21]} Re1+ {[%emt 0:00:30]} 32. Rxe1 {[%emt 0:00:09]} Qxe1+ {[%emt 0:00:33]} 33. Kh2 {[%emt 0:00:01]} Qe5+ {[%emt 0:00:11]} 34. Kh1 {[%emt 0:00:30]} Qxf5 {[%emt 0:00:00]} 35. Rd2 {[%emt 0:00:00]} Re8 {[%emt 0:00:32]} 36. Rd1 {[%emt 0:00:00]} Re2 {[%emt 0:00:11]} 37. d6 {[%emt 0:00:15]} Qf2 {[%emt 0:00:03]} 38. Rg1 {[%emt 0:00:04]} g4 {[%emt 0:00:49]} 39. d7 {[%emt 0:00:07]} g3 {[%emt 0:00:20]} 0-1

[Event "Turkish Youth Championship 2024"]
[Site "Samsun"]
[Date "2024.05.23"]
[Round "8"]
[White "Kilic, Nurullah"]
[Black "Incecinar, Abdullah Mete"]
[Result "1-0"]
[ECO "B33"]
[WhiteElo "1893"]
[BlackElo "1643"]
[Annotator "NA RC"]
[PlyCount "83"]
[EventDate "2024.05.18"]
[EventType "swiss"]
[EventCountry "TUR"]
[SourceTitle "playchess.com"]
[Source "ChessBase"]
[SourceQuality "1"]
[TimeControl "5400+30"]

1. e4 {[%emt 0:01:00]} c5 {[%emt 0:01:00]} 2. Nf3 {[%emt 0:01:30]} Nc6 {[%emt 0:00:30]} 3. d4 {[%emt 0:04:30]} cxd4 {[%emt 0:00:30]} 4. Nxd4 {[%emt 0:00:00]} Qb6 {[%emt 0:00:30]} 5. Nb3 {[%emt 0:00:00]} Nf6 {[%emt 0:00:00]} 6. Nc3 {[%emt 0:01:30]} e6 {[%emt 0:00:00]} 7. Be3 {[%emt 0:00:30]} Qc7 {[%emt 0:00:30]} 8. Bd3 {[%emt 0:00:00]} a6 {[%emt 0:09:30]} 9. f4 {[%emt 0:09:00]} d6 {[%emt 0:00:00]} 10. O-O {[%emt 0:02:30]} Be7 {[%emt 0:01:00]} 11. Qf3 {[%emt 0:06:30]} O-O {[%emt 0:02:30]} 12. Bf2 {[%emt 0:10:30]} b6 {[%emt 0:16:30]} 13. Rae1 {[%emt 0:04:30]} Bb7 {[%emt 0:08:30]} 14. Qh3 {[%emt 0:04:30]} b5 {[%emt 0:05:30]} 15. a3 {[%emt 0:14:30]} Rac8 {[%emt 0:10:30]} 16. Kh1 {[%emt 0:00:30]} Rfd8 {[%emt 0:02:30]} 17. Bg3 {[%emt 0:04:30]} b4 {[%emt 0:09:30]} 18. Nd1 {[%emt 0:08:30]} Nd7 {[%emt 0:03:30]} 19. e5 {[%emt 0:02:30]} Nf8 {[%emt 0:00:30]} 20. Nf2 {[%emt 0:00:30]} dxe5 {[%emt 0:02:30]} 21. fxe5 {[%emt 0:00:30]} bxa3 {[%emt 0:00:30]} 22. Ng4 {[%emt 0:01:30]} Ng6 {[%emt 0:05:30]} 23. Rxf7 {[%emt 0:13:19]} Kxf7 {[%emt 0:06:53]} 24. Qxh7 {[%emt 0:00:08]} Nf8 {[%emt 0:02:02]} 25. Rf1+ {[%emt 0:00:21]} Ke8 {[%emt 0:00:30]} 26. Qxg7 {[%emt 0:00:07]} Nb4 {[%emt 0:03:13]} 27. Rxf8+ {[%emt 0:02:24]} Kd7 {[%emt 0:00:12]} 28. Rf7 {[%emt 0:02:21]} axb2 {[%emt 0:05:22]} 29. Rxe7+ {[%emt 0:05:11]} Kc6 {[%emt 0:00:06]} 30. Rxc7+ {[%emt 0:00:00]} Rxc7 {[%emt 0:00:31]} 31. Na5+ {[%emt 0:00:00]} Kd5 {[%emt 0:00:41]} 32. c4+ {[%emt 0:01:28]} Kd4 {[%emt 0:02:06]} 33. Qxc7 {[%emt 0:00:35]} Kxd3 {[%emt 0:00:02]} 34. Qxd8+ {[%emt 0:00:00]} Ke2 {[%emt 0:01:16]} 35. Qd4 {[%emt 0:00:56]} b1=Q+ {[%emt 0:00:54]} 36. Qg1 {[%emt 0:00:00]} Bxg2+ {[%emt 0:02:44]} 37. Kxg2 {[%emt 0:00:30]} Qe4+ {[%emt 0:00:00]} 38. Kh3 {[%emt 0:00:11]} Qh7+ {[%emt 0:00:00]} 39. Bh4 {[%emt 0:00:00]} Nd3 {[%emt 0:00:18]} 40. Qg2+ {[%emt 0:00:00]} Kd1 {[%emt 0:00:30]} 41. Ne3+ {[%emt 0:00:00]} Kc1 {[%emt 0:00:25]} 42. Qc2# {[%emt 0:00:39]} 1-0

[Event "Turkish Youth Championship 2024"]
[Site "Samsun"]
[Date "2024.05.23"]
[Round "8"]
[White "Ekinci, Berkay"]
[Black "Sadik, Muhammed Selim"]
[Result "1-0"]
[ECO "D51"]
[WhiteElo "1891"]
[BlackElo "1734"]
[Annotator "NA RC"]
[PlyCount "59"]
[EventDate "2024.05.18"]
[EventType "swiss"]
[EventCountry "TUR"]
[SourceTitle "playchess.com"]
[Source "ChessBase"]
[SourceQuality "1"]
[TimeControl "5400+30"]

1. d4 {[%emt 0:01:00]} Nf6 {[%emt 0:01:00]} 2. c4 {[%emt 0:00:30]} e6 {[%emt 0:00:00]} 3. Nc3 {[%emt 0:00:00]} d5 {[%emt 0:00:00]} 4. Bg5 {[%emt 0:01:00]} c6 {[%emt 0:00:00]} 5. e3 {[%emt 0:00:30]} Nbd7 {[%emt 0:00:00]} 6. Qc2 {[%emt 0:00:00]} Qa5 {[%emt 0:01:30]} 7. Bxf6 {[%emt 0:02:00]} Nxf6 {[%emt 0:00:30]} 8. Bd3 {[%emt 0:01:30]} dxc4 {[%emt 0:03:30]} 9. Bxc4 {[%emt 0:00:30]} e5 {[%emt 0:00:30]} 10. Qb3 {[%emt 0:04:30]} Qc7 {[%emt 0:03:30]} 11. dxe5 {[%emt 0:00:30]} Ng4 {[%emt 0:00:30]} 12. e6 {[%emt 0:06:30]} f6 {[%emt 0:05:30]} 13. Nf3 {[%emt 0:12:30]} Be7 {[%emt 0:00:30]} 14. Nd4 {[%emt 0:07:30]} O-O {[%emt 0:10:30]} 15. h3 {[%emt 0:04:30]} Ne5 {[%emt 0:00:30]} 16. f4 {[%emt 0:01:30]} Nxc4 {[%emt 0:01:30]} 17. Qxc4 {[%emt 0:00:30]} Kh8 {[%emt 0:21:30]} 18. O-O {[%emt 0:01:30]} c5 {[%emt 0:13:30]} 19. Nf5 {[%emt 0:06:30]} Qd8 {[%emt 0:04:30]} 20. Rad1 {[%emt 0:02:30]} Qe8 {[%emt 0:01:30]} 21. Nxe7 {[%emt 0:07:30]} Qxe7 {[%emt 0:00:30]} 22. f5 {[%emt 0:00:30]} b5 {[%emt 0:00:30]} 23. Qxb5 {[%emt 0:00:30]} a6 {[%emt 0:00:30]} 24. Qc4 {[%emt 0:03:30]} g6 {[%emt 0:00:30]} 25. Nd5 {[%emt 0:00:30]} Qa7 {[%emt 0:00:00]} 26. e7 {[%emt 0:00:30]} Re8 {[%emt 0:00:00]} 27. Nxf6 {[%emt 0:00:30]} Qxe7 {[%emt 0:00:30]} 28. Nxe8 {[%emt 0:00:00]} Qxe3+ {[%emt 0:00:30]} 29. Kh1 {[%emt 0:00:00]} Qxe8 {[%emt 0:00:00]} 30. fxg6 {[%emt 0:00:30]} 1-0

[Event "Turkish Youth Championship 2024"]
[Site "Samsun"]
[Date "2024.05.23"]
[Round "8"]
[White "Cicek, Bilal Emre"]
[Black "Nuhoglu, Yusahan"]
[Result "1-0"]
[ECO "A43"]
[WhiteElo "1873"]
[BlackElo "1792"]
[Annotator "NA RC"]
[PlyCount "95"]
[EventDate "2024.05.18"]
[EventType "swiss"]
[EventCountry "TUR"]
[SourceTitle "playchess.com"]
[Source "ChessBase"]
[SourceQuality "1"]
[TimeControl "5400+30"]

1. d4 {[%emt 0:01:00]} c5 {[%emt 0:01:00]} 2. dxc5 {[%emt 0:00:30]} e6 {[%emt 0:00:30]} 3. Nc3 {[%emt 0:00:30]} Bxc5 {[%emt 0:00:30]} 4. Ne4 {[%emt 0:00:00]} Nf6 {[%emt 0:01:30]} 5. Nxc5 {[%emt 0:03:00]} Qa5+ {[%emt 0:00:00]} 6. Bd2 {[%emt 0:01:30]} Qxc5 {[%emt 0:00:00]} 7. Bc3 {[%emt 0:00:30]} e5 {[%emt 0:06:30]} 8. Qd3 {[%emt 0:07:30]} Nc6 {[%emt 0:01:30]} 9. O-O-O {[%emt 0:01:30]} d5 {[%emt 0:00:30]} 10. e3 {[%emt 0:00:30]} a6 {[%emt 0:04:30]} 11. f4 {[%emt 0:03:30]} e4 {[%emt 0:01:30]} 12. Qd2 {[%emt 0:00:30]} Be6 {[%emt 0:01:30]} 13. Ne2 {[%emt 0:00:30]} O-O-O {[%emt 0:02:30]} 14. Nd4 {[%emt 0:00:30]} Rhe8 {[%emt 0:02:30]} 15. Be2 {[%emt 0:00:30]} Kb8 {[%emt 0:02:30]} 16. f5 {[%emt 0:01:30]} Bc8 {[%emt 0:00:30]} 17. Nxc6+ {[%emt 0:00:30]} Qxc6 {[%emt 0:01:30]} 18. g4 {[%emt 0:00:30]} h5 {[%emt 0:09:30]} 19. h3 {[%emt 0:07:30]} h4 {[%emt 0:28:30]} 20. Rdf1 {[%emt 0:01:30]} Nd7 {[%emt 0:02:30]} 21. Bxg7 {[%emt 0:07:30]} Ne5 {[%emt 0:01:30]} 22. Qd4 {[%emt 0:03:30]} f6 {[%emt 0:05:30]} 23. g5 {[%emt 0:10:30]} Qc7 {[%emt 0:05:30]} 24. Bxf6 {[%emt 0:00:30]} Nc6 {[%emt 0:00:30]} 25. Bxd8 {[%emt 0:00:30]} Rxd8 {[%emt 0:00:30]} 26. Qc5 {[%emt 0:00:30]} d4 {[%emt 0:00:30]} 27. exd4 {[%emt 0:00:30]} Qg3 {[%emt 0:00:30]} 28. d5 {[%emt 0:00:30]} Qe5 {[%emt 0:01:02]} 29. f6 {[%emt 0:01:30]} Rxd5 {[%emt 0:00:11]} 30. Qxd5 {[%emt 0:01:30]} Qxd5 {[%emt 0:00:17]} 31. f7 {[%emt 0:00:00]} Nd4 {[%emt 0:00:30]} 32. f8=Q {[%emt 0:01:00]} Nxe2+ {[%emt 0:00:30]} 33. Kb1 {[%emt 0:00:00]} Ng3 {[%emt 0:00:30]} 34. Qf4+ {[%emt 0:00:00]} Ka8 {[%emt 0:00:00]} 35. Rd1 {[%emt 0:00:00]} Qc4 {[%emt 0:00:00]} 36. Rhe1 {[%emt 0:00:00]} Be6 {[%emt 0:01:30]} 37. Rd8+ {[%emt 0:01:30]} Ka7 {[%emt 0:00:30]} 38. Qb8+ {[%emt 0:00:00]} Kb6 {[%emt 0:00:30]} 39. Rd6+ {[%emt 0:00:00]} Ka5 {[%emt 0:00:00]} 40. Qd8+ {[%emt 0:00:00]} Kb4 {[%emt 0:00:00]} 41. Qb6+ {[%emt 0:00:00]} Qb5 {[%emt 0:00:30]} 42. Rd4+ {[%emt 0:02:30]} Bc4 {[%emt 0:00:00]} 43. c3+ {[%emt 0:00:30]} Ka4 {[%emt 0:00:00]} 44. b3+ {[%emt 0:00:30]} Ka3 {[%emt 0:00:30]} 45. Rxc4 {[%emt 0:00:00]} Ne2 {[%emt 0:00:30]} 46. Rxe2 {[%emt 0:00:00]} e3 {[%emt 0:00:30]} 47. Ra4+ {[%emt 0:00:30]} Qxa4 {[%emt 0:00:30]} 48. Qd6+ {[%emt 0:00:30]} 1-0

[Event "Turkish Youth Championship 2024"]
[Site "Samsun"]
[Date "2024.05.23"]
[Round "8"]
[White "Bulut, Kemal"]
[Black "Zerey, Demhat"]
[Result "0-1"]
[ECO "C47"]
[WhiteElo "1848"]
[BlackElo "1986"]
[Annotator "NA RC"]
[PlyCount "80"]
[EventDate "2024.05.18"]
[EventType "swiss"]
[EventCountry "TUR"]
[SourceTitle "playchess.com"]
[Source "ChessBase"]
[SourceQuality "1"]
[TimeControl "5400+30"]

1. e4 {[%emt 0:04:00]} e5 {[%emt 0:01:00]} 2. Nf3 {[%emt 0:00:30]} Nc6 {[%emt 0:00:30]} 3. Nc3 {[%emt 0:00:00]} Nf6 {[%emt 0:02:30]} 4. h3 {[%emt 0:00:00]} d5 {[%emt 0:04:30]} 5. exd5 {[%emt 0:00:30]} Nxd5 {[%emt 0:00:30]} 6. Bb5 {[%emt 0:00:00]} Nxc3 {[%emt 0:04:30]} 7. bxc3 {[%emt 0:00:00]} Bd6 {[%emt 0:00:30]} 8. O-O {[%emt 0:04:30]} O-O {[%emt 0:01:30]} 9. d4 {[%emt 0:02:30]} exd4 {[%emt 0:07:30]} 10. cxd4 {[%emt 0:00:30]} Bf5 {[%emt 0:01:30]} 11. c4 {[%emt 0:01:30]} Nb8 {[%emt 0:07:30]} 12. Bb2 {[%emt 0:03:30]} c6 {[%emt 0:01:30]} 13. Ba4 {[%emt 0:00:30]} Nd7 {[%emt 0:01:30]} 14. d5 {[%emt 0:04:30]} Nc5 {[%emt 0:09:30]} 15. dxc6 {[%emt 0:01:30]} Nxa4 {[%emt 0:05:30]} 16. Qxa4 {[%emt 0:00:30]} bxc6 {[%emt 0:08:30]} 17. Qxc6 {[%emt 0:00:30]} Rc8 {[%emt 0:04:30]} 18. Qd5 {[%emt 0:06:30]} Be6 {[%emt 0:01:30]} 19. Qd4 {[%emt 0:00:30]} f6 {[%emt 0:00:00]} 20. Rac1 {[%emt 0:00:30]} Qc7 {[%emt 0:04:00]} 21. Rfe1 {[%emt 0:09:30]} Bc5 {[%emt 0:01:30]} 22. Qh4 {[%emt 0:02:30]} Bf7 {[%emt 0:02:30]} 23. Nd2 {[%emt 0:04:30]} Bb4 {[%emt 0:04:30]} 24. Bc3 {[%emt 0:04:30]} Ba3 {[%emt 0:03:30]} 25. Ne4 {[%emt 0:04:30]} Bg6 {[%emt 0:00:30]} 26. Rcd1 {[%emt 0:04:30]} Qxc4 {[%emt 0:01:30]} 27. Bxf6 {[%emt 0:17:30]} gxf6 {[%emt 0:03:31]} 28. Nxf6+ {[%emt 0:00:00]} Kh8 {[%emt 0:00:36]} 29. Ng4 {[%emt 0:00:00]} Qf4 {[%emt 0:03:21]} 30. g3 {[%emt 0:01:30]} Qf3 {[%emt 0:02:36]} 31. Qg5 {[%emt 0:00:30]} Bb2 {[%emt 0:01:37]} 32. Rd6 {[%emt 0:03:30]} Be4 {[%emt 0:01:05]} 33. Kf1 {[%emt 0:01:30]} Rc2 {[%emt 0:01:24]} 34. Rd2 {[%emt 0:00:30]} Qh1+ {[%emt 0:00:55]} 35. Ke2 {[%emt 0:00:30]} Bf3+ {[%emt 0:00:00]} 36. Kd3 {[%emt 0:00:30]} Qxe1 {[%emt 0:00:39]} 37. Kxc2 {[%emt 0:00:30]} Qc1+ {[%emt 0:00:30]} 38. Kb3 {[%emt 0:00:00]} Qc3+ {[%emt 0:00:04]} 39. Ka4 {[%emt 0:00:00]} Qc4+ {[%emt 0:00:10]} 40. Ka5 {[%emt 0:00:30]} Bc3# {[%emt 0:00:00]} 0-1

[Event "Turkish Youth Championship 2024"]
[Site "Samsun"]
[Date "2024.05.23"]
[Round "8"]
[White "Herdem, Talha"]
[Black "Atis, Hasan"]
[Result "1/2-1/2"]
[ECO "B40"]
[WhiteElo "1844"]
[BlackElo "2014"]
[Annotator "RC"]
[PlyCount "99"]
[EventDate "2024.05.18"]
[EventType "swiss"]
[EventCountry "TUR"]
[SourceTitle "playchess.com"]
[Source "ChessBase"]
[SourceQuality "1"]
[TimeControl "5400+30"]

1. e4 {[%emt 0:02:00]} c5 {[%emt 0:01:00]} 2. Nf3 {[%emt 0:00:00]} e6 {[%emt 0:00:30]} 3. d4 {[%emt 0:00:00]} cxd4 {[%emt 0:00:00]} 4. Nxd4 {[%emt 0:00:00]} Bc5 {[%emt 0:00:00]} 5. Be3 {[%emt 0:03:00]} Qb6 {[%emt 0:00:30]} 6. Nc3 {[%emt 0:03:30]} Nc6 {[%emt 0:00:00]} 7. Na4 {[%emt 0:01:30]} Qa5+ {[%emt 0:00:00]} 8. c3 {[%emt 0:00:00]} Bxd4 {[%emt 0:00:30]} 9. Bxd4 {[%emt 0:00:00]} Nxd4 {[%emt 0:00:30]} 10. Qxd4 {[%emt 0:00:00]} e5 {[%emt 0:00:30]} 11. Qb4 {[%emt 0:06:00]} Qxb4 {[%emt 0:00:30]} 12. cxb4 {[%emt 0:00:30]} Nf6 {[%emt 0:00:30]} 13. Nc3 {[%emt 0:00:30]} d6 {[%emt 0:01:30]} 14. Rd1 {[%emt 0:10:30]} Be6 {[%emt 0:13:30]} 15. Rxd6 {[%emt 0:06:30]} Ke7 {[%emt 0:00:00]} 16. Rd2 {[%emt 0:01:30]} Rhd8 {[%emt 0:00:00]} 17. Rxd8 {[%emt 0:22:30]} Rxd8 {[%emt 0:00:30]} 18. f3 {[%emt 0:00:30]} Rd4 {[%emt 0:01:30]} 19. a3 {[%emt 0:00:30]} a6 {[%emt 0:02:30]} 20. Ke2 {[%emt 0:02:30]} Bb3 {[%emt 0:21:30]} 21. Ke3 {[%emt 0:01:30]} Nd7 {[%emt 0:00:30]} 22. Be2 {[%emt 0:01:30]} Nb6 {[%emt 0:00:30]} 23. Rc1 {[%emt 0:09:30]} Ke6 {[%emt 0:09:30]} 24. Bd3 {[%emt 0:01:30]} Kf6 {[%emt 0:18:30]} 25. Ne2 {[%emt 0:01:30]} Rd6 {[%emt 0:01:30]} 26. Rc3 {[%emt 0:07:15]} Be6 {[%emt 0:04:30]} 27. b3 {[%emt 0:01:19]} g6 {[%emt 0:01:30]} 28. Bc2 {[%emt 0:06:02]} Nd7 {[%emt 0:00:30]} 29. Bd3 {[%emt 0:06:34]} b5 {[%emt 0:02:30]} 30. a4 {[%emt 0:00:35]} Rb6 {[%emt 0:00:00]} 31. axb5 {[%emt 0:01:39]} axb5 {[%emt 0:00:00]} 32. f4 {[%emt 0:01:52]} Ke7 {[%emt 0:02:02]} 33. fxe5 {[%emt 0:02:54]} Nxe5 {[%emt 0:00:01]} 34. Nd4 {[%emt 0:00:31]} Bd7 {[%emt 0:05:09]} 35. Rc5 {[%emt 0:01:14]} Ng4+ {[%emt 0:00:01]} 36. Kf4 {[%emt 0:00:00]} Rf6+ {[%emt 0:01:22]} 37. Kg3 {[%emt 0:00:21]} Rd6 {[%emt 0:02:11]} 38. Bxb5 {[%emt 0:01:33]} Rxd4 {[%emt 0:00:13]} 39. Bxd7 {[%emt 0:00:13]} Nf6 {[%emt 0:00:05]} 40. Bc6 {[%emt 0:00:37]} Rxb4 {[%emt 0:00:01]} 41. Rc3 {[%emt 0:00:44]} Nxe4+ {[%emt 0:02:06]} 42. Bxe4 {[%emt 0:00:01]} Rxe4 {[%emt 0:00:00]} 43. Kf3 {[%emt 0:00:38]} Rb4 {[%emt 0:00:00]} 44. Rd3 {[%emt 0:00:38]} Ke6 {[%emt 0:00:00]} 45. Ke3 {[%emt 0:00:23]} f5 {[%emt 0:00:00]} 46. Kd2 {[%emt 0:00:15]} Rf4 {[%emt 0:00:08]} 47. Ke3 {[%emt 0:00:53]} Rh4 {[%emt 0:00:07]} 48. h3 {[%emt 0:00:00]} h5 {[%emt 0:00:19]} 49. Rd4 {[%emt 0:00:39]} g5 {[%emt 0:01:50]} 50. b4 {[%emt 0:01:16]} 1/2-1/2

[Event "Turkish Youth Championship 2024"]
[Site "Samsun"]
[Date "2024.05.23"]
[Round "8"]
[White "Cetindag, Alper"]
[Black "Ozturk, Ahmet Emir"]
[Result "1-0"]
[ECO "C02"]
[WhiteElo "1839"]
[BlackElo "1581"]
[Annotator "NA RC"]
[PlyCount "71"]
[EventDate "2024.05.18"]
[EventType "swiss"]
[EventCountry "TUR"]
[SourceTitle "playchess.com"]
[Source "ChessBase"]
[SourceQuality "1"]
[TimeControl "5400+30"]

1. e4 {[%emt 0:01:00]} e6 {[%emt 0:01:00]} 2. d4 {[%emt 0:00:30]} d5 {[%emt 0:00:00]} 3. e5 {[%emt 0:00:00]} c5 {[%emt 0:00:00]} 4. c3 {[%emt 0:00:00]} Nc6 {[%emt 0:00:00]} 5. Nf3 {[%emt 0:00:00]} Qb6 {[%emt 0:01:00]} 6. a3 {[%emt 0:00:00]} Bd7 {[%emt 0:00:00]} 7. b4 {[%emt 0:00:00]} cxd4 {[%emt 0:00:00]} 8. cxd4 {[%emt 0:00:00]} Rc8 {[%emt 0:00:30]} 9. Be3 {[%emt 0:00:00]} Nh6 {[%emt 0:04:30]} 10. Bd3 {[%emt 0:00:00]} Nf5 {[%emt 0:00:30]} 11. Bxf5 {[%emt 0:00:30]} exf5 {[%emt 0:00:30]} 12. O-O {[%emt 0:00:00]} h6 {[%emt 0:00:00]} 13. h4 {[%emt 0:01:00]} Be7 {[%emt 0:00:00]} 14. Nc3 {[%emt 0:00:30]} Be6 {[%emt 0:00:30]} 15. Rc1 {[%emt 0:03:30]} Qd8 {[%emt 0:06:30]} 16. h5 {[%emt 0:04:30]} g5 {[%emt 0:00:30]} 17. hxg6 {[%emt 0:09:30]} fxg6 {[%emt 0:01:30]} 18. Ne1 {[%emt 0:03:30]} g5 {[%emt 0:03:30]} 19. f3 {[%emt 0:03:30]} Kf7 {[%emt 0:04:30]} 20. Nd3 {[%emt 0:01:30]} b6 {[%emt 0:00:30]} 21. Qb3 {[%emt 0:09:30]} Kg7 {[%emt 0:06:30]} 22. Rc2 {[%emt 0:01:30]} h5 {[%emt 0:09:30]} 23. Rfc1 {[%emt 0:01:30]} h4 {[%emt 0:01:30]} 24. Ne2 {[%emt 0:03:30]} Qd7 {[%emt 0:01:30]} 25. Bd2 {[%emt 0:10:30]} a6 {[%emt 0:31:30]} 26. b5 {[%emt 0:08:30]} axb5 {[%emt 0:00:30]} 27. Qxb5 {[%emt 0:00:30]} Na5 {[%emt 0:12:39]} 28. Qxd7 {[%emt 0:02:30]} Bxd7 {[%emt 0:02:26]} 29. Rc7 {[%emt 0:00:30]} Rhd8 {[%emt 0:00:31]} 30. e6 {[%emt 0:01:30]} Nc4 {[%emt 0:00:35]} 31. Rxd7 {[%emt 0:01:30]} Rxd7 {[%emt 0:00:46]} 32. exd7 {[%emt 0:00:30]} Rd8 {[%emt 0:00:07]} 33. Bb4 {[%emt 0:00:30]} Rxd7 {[%emt 0:00:04]} 34. f4 {[%emt 0:01:30]} g4 {[%emt 0:00:13]} 35. Ne5 {[%emt 0:00:30]} Nxe5 {[%emt 0:00:03]} 36. fxe5 {[%emt 0:00:30]} 1-0

[Event "Turkish Youth Championship 2024"]
[Site "Samsun"]
[Date "2024.05.23"]
[Round "8"]
[White "Hamurcu, Mehmet"]
[Black "Toptal, Uygar Altan"]
[Result "1-0"]
[ECO "C29"]
[WhiteElo "1832"]
[BlackElo "1679"]
[Annotator "NA RC"]
[PlyCount "50"]
[EventDate "2024.05.18"]
[EventType "swiss"]
[EventCountry "TUR"]
[SourceTitle "playchess.com"]
[Source "ChessBase"]
[SourceQuality "1"]
[TimeControl "5400+30"]

1. e4 {[%emt 0:04:00]} e5 {[%emt 0:01:00]} 2. Nc3 {[%emt 0:00:30]} Nf6 {[%emt 0:00:30]} 3. f4 {[%emt 0:00:00]} d5 {[%emt 0:00:30]} 4. fxe5 {[%emt 0:00:00]} Nxe4 {[%emt 0:00:00]} 5. Qf3 {[%emt 0:00:00]} f5 {[%emt 0:00:00]} 6. d4 {[%emt 0:00:00]} Bb4 {[%emt 0:01:30]} 7. Bd3 {[%emt 0:27:30]} Nxc3 {[%emt 0:08:30]} 8. Bd2 {[%emt 0:00:30]} Qh4+ {[%emt 0:02:30]} 9. g3 {[%emt 0:00:30]} Qxd4 {[%emt 0:14:30]} 10. bxc3 {[%emt 0:00:30]} Qxe5+ {[%emt 0:00:30]} 11. Kf1 {[%emt 0:00:30]} Be7 {[%emt 0:00:00]} 12. Re1 {[%emt 0:00:00]} Qf6 {[%emt 0:03:00]} 13. Qxd5 {[%emt 0:11:00]} Bd7 {[%emt 0:25:30]} 14. Qxb7 {[%emt 0:11:30]} O-O {[%emt 0:01:30]} 15. Nf3 {[%emt 0:18:30]} Qc6 {[%emt 0:09:30]} 16. Qxc6 {[%emt 0:00:30]} Bxc6 {[%emt 0:00:30]} 17. Rxe7 {[%emt 0:03:39]} Bxf3 {[%emt 0:01:30]} 18. Rg1 {[%emt 0:00:21]} c6 {[%emt 0:08:30]} 19. Kf2 {[%emt 0:01:45]} Bd5 {[%emt 0:05:02]} 20. c4 {[%emt 0:00:18]} Bf7 {[%emt 0:00:37]} 21. c5 {[%emt 0:00:07]} g6 {[%emt 0:00:34]} 22. Rge1 {[%emt 0:06:03]} a5 {[%emt 0:00:09]} 23. Bh6 {[%emt 0:00:00]} Rd8 {[%emt 0:00:20]} 24. Rb1 {[%emt 0:09:15]} Nd7 {[%emt 0:01:02]} 25. Rb7 {[%emt 0:00:30]} Nf6 {[%emt 0:00:30]} 1-0